Cogmind - Beta 16 @@@ ROGUE MODE // 2026.01.19 @ 20:23:28 Player: BottomOfTheSwamp Result: Self-destructed Performance ------------- Evolutions (1) 500 Regions Visited (3) 600 Robots Destroyed (10) 50 Value Destroyed (269) 269 Prototype IDs (0) 0 Alien Tech Used (0) 0 Bonus (0) 0 TOTAL SCORE: 1419 Bonus ------- None Cogmind --------- Core Integrity 88/400 Matter 300/300 Energy 37/100 System Corruption 1% Temperature Cool (0) Movement Core (100) Ox1 Location -9/Materials Parts ------- > --- POWER (1) -------- (None) > --- PROPULSION (4) --- (None) > --- UTILITY (2) ------ Small Storage Unit Utility Shielding > --- WEAPON (2) ------- (None) > --- INVENTORY (8) ---- Flight Unit EM Pulse Gun Medium Laser Beam Rifle Peak State ------------ > --- POWER ------------ Ion Engine > --- PROPULSION ------- VTOL Module VTOL Module VTOL Module VTOL Module > --- UTILITY ---------- Small Storage Unit Utility Shielding > --- WEAPON ----------- Beam Rifle Beam Rifle > --- INVENTORY -------- Flight Unit Flight Unit EM Pulse Gun Medium Laser EMP Blaster [Rating: 15] Favorites ----------- Power Ion Engine Engine Ion Engine Propulsion VTOL Module Leg Aluminum Leg Flight Unit VTOL Module Utility Small Storage Unit Storage Small Storage Unit Protection Utility Shielding Weapon EM Pulse Gun Energy Gun EM Pulse Gun Launcher Mini Grenade Launcher Build | -11 -10 -10 -9 ------- Run | Yrd Mat Min Mat Slots Evolved 2 | . . . 2 Power . | . . . . Propulsion 2 | . . . 2 Utility . | . . . . Weapon . | . . . . Parts Attached 17 | 6 3 1 7 Power 1 | 1 . . . Engine 1 | 1 . . . Core . | . . . . Reactor . | . . . . Propulsion 7 | 2 2 . 3 Treads . | . . . . Leg 2 | 2 . . . Wheel . | . . . . Hover . | . . . . Flight 5 | . 2 . 3 Utility 2 | 1 . 1 . Device . | . . . . Storage 1 | 1 . . . Processor . | . . . . Hackware . | . . . . Protection 1 | . . 1 . Artifact . | . . . . Weapon 7 | 2 1 . 4 Energy Gun 5 | 2 1 . 2 Energy Cannon . | . . . . Ballistic Gun . | . . . . Ballistic Cannon . | . . . . Launcher 2 | . . . 2 Special Weapon . | . . . . Impact Weapon . | . . . . Slashing Weapon . | . . . . Piercing Weapon . | . . . . Special Melee Weapon . | . . . . Unidentified Prototypes . | . . . . Parts Lost 10 | . . . 10 Power 1 | . . . 1 Propulsion 5 | . . . 5 Utility . | . . . . Weapon 4 | . . . 4 Highest Loss Streak 10 | . . . 10 To Critical Strikes . | . . . . Average Backups 4 | 3 1 6 5 Power . | . . . . Propulsion 1 | . . 2 1 Utility . | . . . . Weapon 2 | 1 . 3 3 Tool/Special . | . . . . Unused Backups 1 | . . . 1 Power . | . . . . Propulsion 1 | . . . 1 Utility . | . . . . Weapon . | . . . . Tool/Special . | . . . . Average Slot Usage (%) 89 | . 85 90 91 Engine 12 | . 14 14 9 Leg 4 | . 20 . . Flight 26 | . 7 28 38 Storage 13 | . 14 14 11 Protection 5 | . . 4 11 Energy Gun 25 | . 28 28 18 Peak Build Rating 15 | 6 10 11 15 Average Rating 9 | 1 6 10 12 On Entrance 6 | . 6 10 11 Avg Prop Armor Cover (%) . | . . . . Naked Turns . | . . . . Heaviest Build 16 | 14 15 16 16 Greatest Support 20 | 20 20 8 16 Greatest Overweight (x) 3 | . 1 1 3 Average Overweight (x) . | . . 1 . Largest Inventory Capacity 8 | 8 8 8 8 Average Capacity 7 | 5 8 8 8 Most Carried 7 | 5 6 7 6 Average Carried 4 | 4 1 6 5 Final Capacity 8 | 8 8 8 8 Final Carried 7 | . 6 7 4 Class Distribution -------------------- 83% | Mutant 16% | Sprinter Dominant Class ---------------- Mutant | -10/Materials Mutant | -10/Mines Sprinter | -9/Materials Resources | -11 -10 -10 -9 ----------- Run | Yrd Mat Min Mat Matter Collected 379 | 205 . 76 98 Remotely . | . . . . Salvage Created 257 | . . 31 226 Parts 20 | . . 6 14 Haulers Intercepted . | . . . . Recyclers Shooed . | . . . . Parts Field Recycled . | . . . . Retrieved Matter . | . . . . Parts Self-Destructed . | . . . . Prevented . | . . . . Parts Restored . | . . . . Kills | -11 -10 -10 -9 ------- Run | Yrd Mat Min Mat Combat Hostiles Destroyed 7 | . . 2 5 Guns 3 | . . 2 1 AOE 4 | . . . 4 Classes Destroyed 4 | . . 1 3 Worker 1 | . . . 1 Watcher 2 | . . . 2 Swarmer 2 | . . 2 . Grunt 5 | . . . 5 Best Kill Streak 3 | . . 2 3 Combat Bots Only 2 | . . 2 2 Max Kills in Single Turn 2 | . . 1 2 Gunslinging . | . . . . Exploded 2 | . . . 2 Melee . | . . . . Uniques/NPCs Destroyed . | . . . . Combat | -11 -10 -10 -9 -------- Run | Yrd Mat Min Mat Hostile Shots Fired 73 | . . 12 61 Missed 17 | . . 3 14 Hits 56 | . . 9 47 Projectile 56 | . . 9 47 Critical Strikes 2 | . . . 2 Damage Taken 909 | . . 74 835 Core 312 | . . . 312 Absorbed by Shields . | . . . . Redirected to Shielding 11 | . . . 11 Core Remaining (%) 100 | 100 . 100 . Volleys Fired 33 | . 2 5 26 Largest 2 | . 1 2 2 Hottest 112 | . 40 85 112 Shots Fired 56 | . 2 10 44 Gun 52 | . 2 10 40 Cannon . | . . . . Launcher 4 | . . . 4 Special . | . . . . Kinetic . | . . . . Thermal 16 | . . . 16 Explosive 2 | . . . 2 Electromagnetic 38 | . 2 10 26 Robot Hit Streak 5 | . 1 2 5 Robot Miss Streak 4 | . 1 3 4 Penetration Max . | . . . . Secondary Targets 1 | . . 1 . Max Gunslinging Chain 1 | . . 1 . Shots Hit Robots 35 | . 1 5 29 Core Hits 15 | . . 3 12 Critical Kills . | . . . . Critical Parts Destroyed . | . . . . Critical Strikes 1 | . . . 1 Burn 1 | . . . 1 Melee Attacks . | . . . . Impact . | . . . . Slashing . | . . . . Piercing . | . . . . Sneak Attacks . | . . . . Combat Hostiles . | . . . . Follow-up Attacks . | . . . . Damage Inflicted 708 | . 22 43 643 Guns 481 | . 22 43 416 Cannons . | . . . . Explosions 227 | . . . 227 Melee . | . . . . Ramming . | . . . . Kinetic . | . . . . Thermal 259 | . . . 259 Explosive 83 | . . . 83 Electromagnetic 366 | . 22 43 301 Impact . | . . . . Slashing . | . . . . Piercing . | . . . . Highest Corruption 1 | . . . 1 Average Corruption 1 | . . . 1 Corruption Purged . | . . . . Corruption Blocked . | . . . . Overload Shots . | . . . . Overflow Damage 27 | . . . 27 Projectiles . | . . . . Explosions 27 | . . . 27 Melee . | . . . . Knockbacks . | . . . . Impact . | . . . . Kinetic . | . . . . Secondary . | . . . . Self-Inflicted Damage 179 | . . . 179 Shots 4 | . . . 4 Rammed . | . . . . Targets Rammed . | . . . . Kicked . | . . . . Crushed . | . . . . Highest Temperature 401 | . 4 100 401 Average Temperature 139 | . 3 43 158 Received Heat Transfer 354 | . . . 354 Effects 3 | . . . 3 Shutdowns 3 | . . . 3 Siege Activations . | . . . . Martial Activations . | . . . . Shielding Activations . | . . . . Robots Disrupted . | . . . . Combat Hostiles . | . . . . Robots Corrupted 1 | . . . 1 Combat Hostiles . | . . . . Parts Fried 1 | . . . 1 Impact Corruptions . | . . . . Robots Melted . | . . . . Combat Hostiles . | . . . . Parts Melted . | . . . . Heat Transferred 544 | . . . 544 Parts Sabotaged . | . . . . Parts Stolen . | . . . . Parts Stripped . | . . . . Power Chain Reactions . | . . . . Alert | -11 -10 -10 -9 ------- Run | Yrd Mat Min Mat Maximum Alert Level . | . . . . Low Security (%) 100 | 100 100 100 100 Level 1 . | . . . . Level 2 . | . . . . Level 3 . | . . . . Level 4 . | . . . . Level 5 . | . . . . High Security . | . . . . Max Security . | . . . . Peak Influence 143 | . . 55 143 Initial 13 | . . . 13 Average 17 | . . 11 43 Influence Increases 373 | . . 80 293 Destroy 0b10 Robot/C 140 | . . 40 100 Destroy 0b10 Robot/NC 15 | . . . 15 Destroy Leader 34 | . . 10 24 Disable Machine 30 | . . . 30 Destroy Structure 49 | . . . 49 Partial Spotted 15 | . . . 15 Lose Combat Pursuer 90 | . . 30 60 Influence Decreases 230 | . . 45 185 Entered New Map 22 | . . . 22 Time Decay 108 | . . 45 63 Lost Part 100 | . . . 100 Squads Dispatched 2 | . 1 . 1 Investigation . | . . . . Extermination . | . . . . Reinforcement 2 | . 1 . 1 Assault . | . . . . Garrison . | . . . . Intercept . | . . . . Searches Triggered . | . . . . Construction Impeded . | . . . . Haulers Reinforced . | . . . . Active Scanning Responses . | . . . . Cargo Convoy Interrupts . | . . . . Stealth | -11 -10 -10 -9 --------- Run | Yrd Mat Min Mat Distress Signals 3 | . . . 3 Communications Jammed . | . . . . Distress Signals . | . . . . Times Spotted 25 | . 2 5 18 Peak Tracking Total 7 | . 1 3 7 Tactical Retreats 4 | . . 2 2 Traps | -11 -10 -10 -9 ------- Run | Yrd Mat Min Mat Traps Triggered . | . . . . Indirectly . | . . . . Trap Hack Attempts . | . . . . Triggered . | . . . . Disarmed . | . . . . Reprogrammed . | . . . . Reused . | . . . . Traps Extracted . | . . . . Installed . | . . . . Triggered . | . . . . Machines | -11 -10 -10 -9 ---------- Run | Yrd Mat Min Mat Machines Disabled 2 | . . . 2 Max in Single Turn 2 | . . . 2 Machines Repaired . | . . . . Machines Dismantled . | . . . . Machines Sabotaged . | . . . . Overloaded Fab Kills . | . . . . Hacking | -11 -10 -10 -9 --------- Run | Yrd Mat Min Mat Machines Accessed 1 | . . . 1 Terminals 1 | . . . 1 Fabricators . | . . . . Repair Stations . | . . . . Recycling Units . | . . . . Scanalyzers . | . . . . Garrison Access . | . . . . Total Hacks 2 | . . . 2 Successful . | . . . . Failed 2 | . . . 2 Catastrophic 1 | . . . 1 Database Lockouts . | . . . . Manual 2 | . . . 2 Terminals 2 | . . . 2 Fabricators . | . . . . Repair Stations . | . . . . Recycling Units . | . . . . Scanalyzers . | . . . . Garrison Access . | . . . . Terminal Hacks . | . . . . Fabricator Hacks . | . . . . Repair Station Hacks . | . . . . Recycling Unit Hacks . | . . . . Scanalyzer . | . . . . Garrison Access Hacks . | . . . . Unauthorized Hacks . | . . . . Terminals . | . . . . Fabricators . | . . . . Repair Stations . | . . . . Recycling Units . | . . . . Scanalyzers . | . . . . Garrison Access . | . . . . Data Cores Recovered . | . . . . Used . | . . . . Hacking Detections 1 | . . . 1 Full Trace Events . | . . . . Feedback Events . | . . . . Feedback Blocked . | . . . . Robot Schematics Acquired . | . . . . Robots Built . | . . . . Authchips . | . . . . Time . | . . . . Total Robot Build Rating . | . . . . Part Schematics Acquired . | . . . . Parts Built . | . . . . Authchips . | . . . . Time . | . . . . Total Part Build Rating . | . . . . Part Studies Acquired . | . . . . Parts Repaired . | . . . . Time . | . . . . Parts Recycled . | . . . . Recycled Matter . | . . . . Retrieved Matter . | . . . . Retrieved Components . | . . . . Parts Scanalyzed . | . . . . Part Schematics Acquired . | . . . . Parts Damaged . | . . . . Bothacking | -11 -10 -10 -9 ------------ Run | Yrd Mat Min Mat Used RIF Installer . | . . . . Robots Hacked . | . . . . Non-combat . | . . . . Combat . | . . . . Robot Hacks Applied . | . . . . Relay Couplers Released . | . . . . Fabnet Peak Effective % . | . . . . Robots Rewired . | . . . . Allies Hacked . | . . . . Hacks Repelled . | . . . . Allies | -11 -10 -10 -9 -------- Run | Yrd Mat Min Mat Total Allies . | . . . . Largest Group . | . . . . Highest-Rated Group . | . . . . Highest-Rated Ally . | . . . . Total Orders . | . . . . Ally Attacks . | . . . . Total Damage . | . . . . Kills . | . . . . Allies Corrupted . | . . . . Allies Melted . | . . . . Intel | -11 -10 -10 -9 ------- Run | Yrd Mat Min Mat Active Infowar (turns) . | . . . . Robot Analysis Total . | . . . . Derelict Logs Recovered 3 | . . 3 . Drone Launches . | . . . . Drone Recoveries . | . . . . Exploration | -11 -10 -10 -9 ------------- Run | Yrd Mat Min Mat Turns Passed 557 | 47 94 259 157 Spaces Moved 457 | 37 66 215 139 Core 12 | 12 . . . Treads . | . . . . Legs 76 | 25 51 . . Wheels . | . . . . Hover . | . . . . Flight 369 | . 15 215 139 Fastest Speed 26 | 50 112 112 26 Average Speed 88 | 97 118 112 34 Slowest Speed 280 | 120 120 112 280 Overloaded Moves . | . . . . Propulsion Burnouts . | . . . . Robots Hopped 2 | . . . 2 Potential Cave-ins . | . . . . Cave-ins Triggered . | . . . . Exploration Rate (%) 25 | 3 14 59 24 Regions Visited 3 Branch Regions 1 Pre-discovered Areas 2 | . . 2 . Known Exits Taken . | . . . . Unknown Exits Taken 3 | 1 1 1 . Scrap Searched 1 | . . 1 . Spaces Dug . | . . . . Terrain Destroyed 48 | . . . 48 Melee . | . . . . Projectile . | . . . . AOE 48 | . . . 48 Terrain Rammed . | . . . . Walls Destroyed . | . . . . Machines Disabled . | . . . . Actions | -11 -10 -10 -9 --------- Run | Yrd Mat Min Mat Total 550 | 47 80 223 200 Wait 28 | . . 1 27 Move 451 | 36 65 214 136 Hop 1 | . . . 1 Pick Up 17 | 5 8 2 2 Fast Attach 1 | 1 . . . Attach 13 | 5 2 1 5 Detach . | . . . . Swap 4 | . 1 . 3 Drop 2 | . 2 . . Fire 33 | . 2 5 26 Melee . | . . . . Ram . | . . . . Kick . | . . . . Crush . | . . . . Escape Stasis . | . . . . Rewire . | . . . . Trap . | . . . . Miscellaneous . | . . . . Route ------- -11/Scrapyard -10/Materials -10/Mines -9/Materials History --------- Turn | Location | Event 10 | -11/Scrapyard | Discovered new exit (range 15) 48 | -11/Scrapyard | Entered Materials 101 | -10/Materials | Discovered new exit (range 9) 142 | -10/Materials | Entered Mines 235 | -10/Mines | Learned Materials terminal intel 300 | -10/Mines | Build established: Mutant 373 | -10/Mines | Learned location of Zion (-6) 388 | -10/Mines | Discovered new exit (range 13) 401 | -10/Mines | Entered Materials 401 | -9/Materials | Evolved 2 slots: Propulsion x2 402 | -9/Materials | Loaded intel: 12 terminal locations 554 | -9/Materials | Core integrity fell below 50% 558 | -9/Materials | Self-destructed Last Messages --------------- 00541_ Critical hit (Burn: +37). 00541_ Mni. Grenade Launcher destroyed. 00544_ Beam Rifle destroyed. 00545_ K-01 Serf collects debris. 00547_ Acquired 10 matter. 00548_ Acquired 4 matter. 00548_ K-01 Serf collects debris. 00550_ Hadron Collector disabled. 00551_ G-47 Trooper destroyed. 00551_ Flight Unit destroyed. 00551_ Destroyed Flight Unit. 00553_ Fusion Modulator explodes. 00553_ K-01 Serf destroyed. 00553_ Fusion Modulator explodes. 00553_ EMP Blaster destroyed. 00553_ Destroyed EMP Blaster. 00553_ G-34 Mercenary destroyed. 00553_ U-05 Engineer builds a Wall. 00557_ Critical hit (Burn: +37). 00557_ U-05 Engineer lays Concrete. Map ----- +----------------------------------------------------+ | | | | | | | | | | | | | | | ???????????????????????????????????????????????? | | ???????????????????????????????????????????????? | | ???????????????????????????????????????????????? | | ???????????####?????????????? ?????????????? | | ???????????#!! ?????????????# ????????????? | | ???????????#!! ############## ??????????? | | ???????????#!! # #?????????? | | ???????????#!! # #?????????? | | ????????????]] # #?????????? | | ?????????????? # ??????????? | | ???????????????# # ???????????? | | ???????????????# ????????????? | | ???????????????# #?????????????? | | ???????????????# =! #?????????????? | | ###????######### *%= #?????????????? | | # / u % [= #######????????? | | #???????### ###;;; %;; [[ #????????? | | #?????????# ; [=% % [[ #????????? | | #""???????# ; @ Y #????????? | | #"T???????# ; ; " #????????? | | #""???????# ; ; "" #????????? | | #?????????# ; ; "" #????????? | | #?????????# ; ; #????????? | | #?????????# ; ; [ [ #????????? | | #?????????# ; ;;;###### #????????? | | #?????????#o ;;;; ;;###?????##????????? | | ########### ## # #?????????????????? | | # # + ####?????????????????? | | # # #### #????????????????????? | | # """ """ # #??# !#???????"????????????? | | # """ """ # #??# #???????"????????????? | | # """ """ # #??# #???????"????????????? | | + """ # #??#####Y##???????T????????????? | | # """ # #??????? #????????"????????????? | | # # ########?#????????"????????????? | | #####+##### #????????"????????????? | | # ##??# ######## #?????????????????????? | | #??# #???????????????????????????????? | | #??# #???????????????????????????????? | | %! #??# #???????????????????????????????? | | !! #??# #???????????????????????????????? | | !! #??# #???????????????????????????????? | | #??# #???????????????????????????????? | +----------------------------------------------------+ Best States ------------- Heat Dissipation 28 Energy Generation 10 Energy Capacity 250 Matter Stores 300 Matter Capacity 300 Sight Range 16 Terrain Scan Density 10 Utility Shielding 33 Evasion (%) 64 Item Schematics ----------------- None Robot Schematics ------------------ None Fabricated ------------ Nothing Repaired ---------- Nothing Studied --------- None Alien Tech Used ----------------- None Achievements -------------- None Challenges ------------ None Game ------ Seed MultinovaJunkTendrils Manual? 0 Play Time 00:09:00 Cumulative 25.1 hours Start 2026.01.19 @ 20:16:58 End 2026.01.19 @ 20:23:28 Sessions 1 Manual Loads 0 Difficulty Rogue Special Mode None Game No. 65 Rogue 65 Adventurer 0 Explorer 0 Win Type - Total 0 Types 0/0/0/0/0/0/0/0/0/0 Lore% 16 Gallery% 24 Achievement% 17 Wizard Run 0 Options --------- Layout 0 ASCII 0 Keyboard 0 Movement Mouse Keybinds 0 Fullscreen 1 Font 18/SmallcapsGlow Map View 76x50 Zoom Use 0% Tactical HUD 1 Map Filters NONE Filters NONE Steam 1 RUN: b9405d51-d852-4b07-8578-4a9431684152